bitfinex-derivatives/quotes_BTCF0:USTF0_20241008
["timestamp","ask_amount","ask_price","bid_price","bid_amount"]
[1728399451956,0.085719,62742.0,62741.0,0.002]
[1728399453073,0.085719,62742.0,62741.0,0.08172]
[1728399453455,0.006,62742.0,62741.0,0.08172]
[1728399454363,0.085719,62742.0,62741.0,0.08172]
[1728399456163,0.085719,62742.0,62741.0,0.002]
[1728399458458,0.085719,62742.0,62741.0,0.08172]
[1728399460262,0.3608,62761.0,62741.0,0.55988]
[1728399460453,0.3608,62761.0,62758.0,0.259699]
[1728399460454,0.079697,62760.0,62758.0,0.259699]
[1728399460654,0.3608,62761.0,62758.0,0.259699]
[1728399460957,0.10751278,62766.0,62758.0,0.259699]
[1728399461159,0.1186,62767.0,62758.0,0.18]
[1728399461463,0.062,62767.0,62766.0,0.259688]
[1728399461660,0.00239065,62768.0,62766.0,0.18]
[1728399461855,0.00239065,62768.0,62767.0,0.079687]
[1728399462060,0.08207665,62768.0,62767.0,0.079687]
[1728399462956,0.00239065,62768.0,62767.0,0.079687]
[1728399463769,0.00539065,62768.0,62767.0,0.080687]
[1728399464862,0.01439065,62768.0,62767.0,0.081687]
[1728399465962,0.01939065,62768.0,62767.0,0.081687]
[1728399466270,0.01939065,62768.0,62767.0,0.11002081]
[1728399466466,0.09907665,62768.0,62767.0,0.081687]
[1728399466771,0.01939065,62768.0,62767.0,0.081687]
[1728399470570,0.09907665,62768.0,62767.0,0.002]
[1728399472167,0.09907665,62768.0,62767.0,0.081687]
[1728399472972,0.01939065,62768.0,62767.0,0.081687]
[1728399476176,0.017,62768.0,62767.0,0.081687]
[1728399476762,0.017,62768.0,62767.0,0.442487]
[1728399476967,0.08205284,62787.0,62786.0,0.079663]
[1728399477167,0.08205284,62787.0,62786.0,0.259663]
[1728399477476,0.08205284,62787.0,62786.0,0.079663]
[1728399478170,0.09105284,62787.0,62786.0,0.080663]
[1728399478971,0.09105284,62787.0,62786.0,0.001]
[1728399478972,0.27105284,62787.0,62786.0,0.001]
[1728399479364,0.27105284,62787.0,62786.0,0.002]
[1728399479780,1.34885284,62787.0,62786.0,0.002]
[1728399479967,0.079674,62777.0,62776.0,0.3608]
[1728399480168,0.079674,62777.0,62776.0,0.079676]
[1728399480678,0.079674,62777.0,62776.0,0.259676]
[1728399480869,0.079674,62777.0,62776.0,0.079676]
[1728399481063,0.079674,62777.0,62776.0,0.080676]
[1728399482563,0.080674,62777.0,62776.0,0.081676]
[1728399485785,0.080674,62777.0,62776.0,0.002]
[1728399488081,0.079686,62768.0,62767.0,0.3608]
[1728399488277,0.259686,62768.0,62767.0,0.3608]
[1728399489277,0.259686,62768.0,62767.0,0.001]
[1728399489278,0.261686,62768.0,62767.0,0.001]
[1728399490481,0.081686,62768.0,62767.0,0.001]
[1728399490683,0.080686,62768.0,62767.0,0.001]
[1728399490981,0.079695,62761.0,62760.0,0.3608]
[1728399491187,0.079705,62754.0,62753.0,0.079704]
[1728399491579,0.079709,62750.0,62748.0,0.07971]
[1728399491779,0.079714,62746.0,62745.0,0.0611]
[1728399491970,0.079706,62752.0,62744.0,0.08210653]
[1728399492175,0.079715,62746.0,62745.0,0.079715]
[1728399492790,0.079715,62746.0,62745.0,0.259715]
[1728399492974,0.5408,62753.0,62744.0,0.00239053]
[1728399493179,0.259715,62745.0,62744.0,0.00239053]
[1728399493996,0.079716,62744.0,62743.0,0.3608]
[1728399494198,0.079716,62744.0,62737.0,0.3608]
[1728399494199,0.079724,62738.0,62737.0,0.3608]
[1728399494688,0.48188,62744.0,62737.0,0.3608]
[1728399494689,0.36168,62744.0,62737.0,0.5408]
[1728399494892,0.079709,62750.0,62743.0,0.18]
[1728399495190,0.079709,62750.0,62748.0,0.079711]
[1728399495687,0.10715802,62750.0,62748.0,0.079711]
[1728399495885,0.07971,62749.0,62748.0,0.079711]
[1728399496091,0.07971,62749.0,62743.0,0.54196]
[1728399496092,0.3608,62753.0,62743.0,0.54196]
[1728399496276,0.3608,62753.0,62749.0,0.079709]
[1728399496684,0.079709,62750.0,62749.0,0.079709]
[1728399497292,0.081709,62750.0,62749.0,0.079709]
[1728399497690,0.002,62750.0,62749.0,0.079709]
[1728399497888,0.004,62753.0,62749.0,0.3618]
[1728399498097,0.10709559,62755.0,62751.0,0.079706]
[1728399498288,0.079704,62754.0,62751.0,0.079706]
[1728399498485,0.079709,62750.0,62749.0,0.3618]
[1728399500793,0.080709,62750.0,62749.0,0.3618]
[1728399501189,0.001,62750.0,62749.0,0.44151]
[1728399501692,0.001,62750.0,62749.0,0.49941]
[1728399501994,0.001,62750.0,62749.0,0.50241]
[1728399502196,0.001,62750.0,62749.0,0.56401]
[1728399503789,0.001,62750.0,62749.0,0.56101]
[1728399503990,0.079698,62759.0,62758.0,0.079699]
[1728399504187,0.079698,62759.0,62758.0,0.3608]
[1728399505091,0.079698,62759.0,62758.0,0.440499]
[1728399505490,0.079698,62759.0,62758.0,0.441499]
[1728399506299,0.081698,62759.0,62758.0,0.441499]
[1728399507002,0.36319085,62767.0,62758.0,0.441499]
[1728399507003,0.00084,62779.0,62778.0,0.079673]
[1728399507193,0.00092,62779.0,62778.0,0.981273]
[1728399507394,0.079657,62791.0,62778.0,0.981273]
[1728399507603,0.18,62791.0,62780.0,0.07967]
[1728399507908,0.079658,62790.0,62789.0,0.079659]
[1728399508395,0.079658,62790.0,62779.0,0.0589]
[1728399508396,0.26874059,62795.0,62779.0,0.0589]
[1728399508591,0.08874059,62795.0,62794.0,0.079653]
[1728399509106,0.079654,62794.0,62791.0,0.079657]
[1728399509402,0.08874059,62795.0,62794.0,0.079653]
[1728399509602,0.079654,62794.0,62790.0,0.18]
[1728399510807,0.008,62794.0,62793.0,0.620454]
[1728399511793,0.013,62794.0,62793.0,0.620454]
[1728399512401,0.013,62794.0,62793.0,0.440454]
[1728399512598,0.092653,62794.0,62793.0,0.080654]
[1728399512904,0.092653,62794.0,62784.0,0.079665]
[1728399512905,0.079675,62777.0,62776.0,0.079675]
[1728399513393,0.18,62782.0,62769.0,0.18]
[1728399513394,0.07967,62781.0,62771.0,0.36318951]
[1728399513594,0.07967,62781.0,62774.0,0.079678]
[1728399513595,0.079679,62775.0,62774.0,0.079678]
[1728399514297,0.079679,62775.0,62771.0,0.36318951]
[1728399514298,0.079681,62772.0,62771.0,0.36318951]
[1728399514804,0.079681,62772.0,62771.0,0.3608]
[1728399517091,0.085681,62772.0,62771.0,0.441482]
[1728399519112,0.006,62772.0,62771.0,0.441482]
[1728399519298,0.006,62772.0,62771.0,0.46944668]
[1728399519619,0.079663,62786.0,62784.0,0.359666]
[1728399519907,0.3616,62790.0,62785.0,0.079664]
[1728399520104,0.079664,62786.0,62785.0,0.079664]
[1728399521109,0.079664,62786.0,62784.0,0.3618]
[1728399521110,0.079662,62787.0,62786.0,0.079662]
[1728399522308,0.092662,62787.0,62786.0,0.080662]
[1728399522607,0.097662,62787.0,62786.0,0.081662]
[1728399523607,0.018,62787.0,62786.0,0.081662]
[1728399524301,0.097662,62787.0,62786.0,0.081662]
[1728399524496,0.018,62787.0,62786.0,0.081662]
[1728399525005,0.097662,62787.0,62786.0,0.081662]
[1728399525506,0.018,62787.0,62786.0,0.081662]
[1728399525699,0.097662,62787.0,62786.0,0.081662]
[1728399527309,0.097662,62787.0,62786.0,0.002]
[1728399527611,0.097662,62787.0,62786.0,0.081663]
[1728399528301,0.018,62787.0,62786.0,0.081663]
[1728399529517,0.097662,62787.0,62786.0,0.081663]
[1728399530016,0.097662,62787.0,62786.0,0.002]
[1728399530406,0.097662,62787.0,62786.0,0.081663]
[1728399531617,0.018,62787.0,62786.0,0.081663]
[1728399532215,0.018,62787.0,62786.0,0.361663]
[1728399532712,0.018,62787.0,62786.0,0.081663]
[1728399534015,0.097662,62787.0,62786.0,0.081663]
[1728399534230,0.097662,62787.0,62786.0,0.002]
[1728399534518,0.097662,62787.0,62786.0,0.081663]
[1728399537217,0.018,62787.0,62786.0,0.081663]
[1728399538020,0.097662,62787.0,62786.0,0.081663]
[1728399538620,0.018,62787.0,62786.0,0.081663]
[1728399539921,0.018,62787.0,62786.0,0.261663]
[1728399542919,0.011,62787.0,62786.0,0.261663]
[1728399543730,0.0276981,62799.0,62786.0,0.261663]
[1728399543731,0.079638,62806.0,62803.0,0.079641]
[1728399543924,0.5408,62815.0,62803.0,0.259641]
[1728399543925,0.03900864,62804.0,62803.0,0.259641]
[1728399544117,0.0615,62811.0,62803.0,0.259641]
[1728399544326,0.03900158,62810.0,62809.0,0.259634]
[1728399544828,0.00238928,62812.0,62811.0,0.079631]
[1728399546121,0.005,62812.0,62811.0,0.001]
[1728399546319,0.079616,62824.0,62823.0,0.079615]
[1728399547118,0.079612,62828.0,62827.0,0.07961]
[1728399547721,0.079612,62826.0,62825.0,0.18]
[1728399548031,0.079612,62826.0,62825.0,0.079614]
[1728399549031,0.079612,62826.0,62821.0,0.18]
[1728399549032,0.18,62830.0,62821.0,0.18]
[1728399549223,0.18,62830.0,62817.0,0.3608]
[1728399549224,0.079622,62818.0,62817.0,0.440423]
[1728399550429,0.07962,62821.0,62820.0,0.079618]
[1728399550430,0.079619,62821.0,62820.0,0.079618]
[1728399550732,0.3608,62827.0,62820.0,0.079618]
[1728399550928,0.3608,62827.0,62817.0,0.54216]
[1728399550929,0.079615,62824.0,62823.0,0.079613]
[1728399551234,0.3608,62827.0,62823.0,0.079613]
[1728399551420,0.3608,62827.0,62822.0,0.18]
[1728399551421,0.3608,62827.0,62826.0,0.079612]
[1728399552027,0.3608,62827.0,62826.0,0.259612]
[1728399552636,0.3608,62827.0,62826.0,0.260612]
[1728399552927,0.00238818,62837.0,62826.0,0.260612]
[1728399553128,0.079606,62833.0,62832.0,0.079604]
[1728399554333,0.00738818,62837.0,62836.0,0.0796]
[1728399554927,0.00238818,62837.0,62836.0,0.0796]
[1728399555436,0.00238818,62837.0,62836.0,0.0806]
[1728399555938,0.08198618,62837.0,62836.0,0.0806]
[1728399556239,0.00238818,62837.0,62836.0,0.0806]
[1728399556534,0.08198618,62837.0,62836.0,0.0806]
[1728399557441,0.005,62837.0,62836.0,0.0816]
[1728399557738,0.084598,62837.0,62836.0,0.0816]
[1728399558536,0.084598,62837.0,62836.0,0.10970335]
[1728399558741,0.05,62842.0,62836.0,0.20910335]
[1728399558933,0.05,62842.0,62841.0,0.440393]
[1728399559428,0.05,62842.0,62841.0,0.620393]
[1728399560036,0.129592,62842.0,62841.0,0.620393]
[1728399560435,0.134592,62842.0,62841.0,0.620393]
[1728399560634,0.134592,62842.0,62841.0,0.621393]
[1728399560929,0.055,62842.0,62841.0,0.621393]
[1728399561128,0.055,62842.0,62841.0,0.622393]
[1728399562133,0.134592,62842.0,62841.0,0.442393]
[1728399562952,0.055,62842.0,62841.0,0.442393]
[1728399563329,0.134592,62842.0,62841.0,0.442393]
[1728399564545,0.134592,62842.0,62841.0,0.3628]
[1728399564732,0.134592,62842.0,62841.0,0.002]
[1728399565346,1.211992,62842.0,62841.0,0.002]
[1728399565945,0.611992,62842.0,62841.0,0.002]
[1728399566448,1.211992,62842.0,62841.0,0.002]
[1728399566853,0.611992,62842.0,62841.0,0.002]
[1728399568353,0.134592,62842.0,62841.0,0.002]
[1728399572770,0.17357557,62842.0,62841.0,0.002]
[1728399573154,1.25097557,62842.0,62841.0,0.002]
[1728399573963,0.17357557,62842.0,62841.0,0.002]
[1728399574166,1.25097557,62842.0,62841.0,0.002]
[1728399574363,1.211992,62842.0,62841.0,0.002]
[1728399575666,0.611992,62842.0,62841.0,0.002]
[1728399575861,0.134592,62842.0,62841.0,0.002]
[1728399576465,0.079607,62830.0,62829.0,0.440407]
[1728399577665,0.082607,62830.0,62829.0,0.440407]
[1728399577965,0.082607,62830.0,62829.0,0.441407]
[1728399578356,0.262607,62830.0,62821.0,0.079618]
[1728399578551,0.079627,62814.0,62808.0,0.0618]
[1728399578754,0.079628,62814.0,62804.0,0.3608]
[1728399578957,0.079634,62809.0,62808.0,0.079635]
[1728399579167,0.07963,62813.0,62806.0,0.18]
[1728399579360,0.079625,62817.0,62816.0,0.079625]
[1728399579659,0.003,62830.0,62829.0,0.079608]
[1728399579864,0.003,62830.0,62829.0,0.259608]
[1728399579865,0.079607,62830.0,62829.0,0.259608]
[1728399580063,0.079607,62830.0,62829.0,0.079608]
[1728399580467,0.079611,62827.0,62826.0,0.36216]
[1728399580769,0.2377,62834.0,62824.0,0.3608]
[1728399580961,0.079614,62825.0,62824.0,0.440415]
[1728399582063,0.079614,62825.0,62817.0,0.1775]
[1728399582265,0.079622,62818.0,62817.0,0.0596]
[1728399582664,0.079622,62818.0,62817.0,0.139224]
[1728399584069,0.079622,62818.0,62817.0,0.148224]
[1728399584070,0.080622,62818.0,62817.0,0.148224]
[1728399584268,0.080622,62818.0,62817.0,0.0686]
[1728399584465,0.080622,62818.0,62817.0,0.0666]
[1728399584466,0.260622,62818.0,62817.0,0.0666]
[1728399584660,0.260622,62818.0,62817.0,0.009]
[1728399586466,0.080622,62818.0,62817.0,0.009]
[1728399586661,0.080622,62818.0,62817.0,0.086624]
[1728399586856,0.080622,62818.0,62817.0,0.088624]
[1728399587155,0.079622,62818.0,62817.0,0.082624]
[1728399587461,0.083622,62818.0,62817.0,0.001]
[1728399589171,0.083622,62818.0,62817.0,0.00092]
[1728399590971,0.079639,62807.0,62806.0,0.079637]
[1728399591160,0.079639,62805.0,62804.0,0.3608]
[1728399591561,0.079641,62803.0,62799.0,0.440446]
[1728399591761,0.18,62800.0,62793.0,0.02739689]
[1728399591961,0.18,62800.0,62796.0,0.079649]
[1728399591962,0.07965,62797.0,62796.0,0.079649]
[1728399593170,0.08065,62797.0,62796.0,0.086649]
[1728399593973,0.08065,62797.0,62796.0,0.446449]
[1728399594173,0.001,62797.0,62796.0,0.446449]
[1728399594370,0.001,62797.0,62796.0,0.449449]
[1728399594573,0.079639,62805.0,62804.0,0.079636]
[1728399595668,0.18,62808.0,62796.0,0.3708]
[1728399595871,0.079648,62800.0,62799.0,0.079643]
[1728399596072,0.079637,62807.0,62796.0,0.47882158]
[1728399596272,0.079641,62806.0,62805.0,0.079639]
[1728399597074,0.3608,62809.0,62803.0,0.3608]
[1728399597369,0.3608,62809.0,62808.0,0.079635]
[1728399597370,0.440435,62809.0,62808.0,0.079635]
[1728399597576,0.3608,62809.0,62808.0,0.079635]
[1728399597775,0.440434,62809.0,62808.0,0.079635]
[1728399598173,0.079634,62809.0,62808.0,0.079635]
[1728399598674,0.079634,62809.0,62805.0,0.059]
[1728399598675,0.25963,62812.0,62811.0,0.079631]
[1728399598976,0.18,62816.0,62811.0,0.079631]
[1728399599174,0.079627,62815.0,62814.0,0.079625]
[1728399600274,0.079614,62825.0,62818.0,0.079622]
[1728399600275,0.079622,62819.0,62818.0,0.079622]
[1728399600471,0.079608,62830.0,62818.0,0.18]
[1728399600674,0.079608,62830.0,62829.0,0.079608]
[1728399601175,0.3608,62831.0,62822.0,0.3608]
[1728399601479,0.18,62823.0,62819.0,0.0575]
[1728399601780,0.07962,62820.0,62819.0,0.0575]
[1728399601980,0.079614,62825.0,62819.0,0.0575]
[1728399602186,0.079617,62823.0,62822.0,0.079617]
[1728399602784,0.18,62823.0,62819.0,0.0575]
[1728399602985,0.18,62823.0,62819.0,0.0615]
[1728399603279,0.07962,62820.0,62819.0,0.14112]
[1728399603475,0.079616,62824.0,62819.0,0.0615]
[1728399603670,0.009,62830.0,62819.0,0.2375]
[1728399603873,0.3608,62836.0,62824.0,0.3608]
[1728399604175,0.18,62834.0,62828.0,0.079609]
[1728399604477,0.079607,62831.0,62824.0,0.3608]
[1728399604676,0.079607,62831.0,62830.0,0.079607]
[1728399605282,0.07961,62828.0,62827.0,0.079611]
[1728399606079,0.079605,62832.0,62831.0,0.079605]
[1728399607283,0.02776948,62837.0,62827.0,0.001]
[1728399607587,0.02776948,62837.0,62825.0,0.44565189]
[1728399607588,0.079599,62837.0,62836.0,0.079599]
[1728399607789,0.079602,62835.0,62834.0,0.079602]
[1728399608375,0.079602,62834.0,62833.0,0.440402]
[1728399609076,0.18,62841.0,62833.0,0.3608]
[1728399609386,0.259593,62841.0,62840.0,0.079595]
[1728399609582,0.0796,62837.0,62836.0,0.079599]
[1728399609784,0.0886,62837.0,62836.0,0.079599]
[1728399609990,0.189,62837.0,62833.0,0.3608]
[1728399610286,0.01,62834.0,62833.0,0.4424]
[1728399611089,0.01,62834.0,62833.0,0.4414]
[1728399611681,0.079602,62834.0,62833.0,0.3608]
[1728399611883,0.079601,62835.0,62818.0,0.3608]
[1728399612185,0.079611,62827.0,62820.0,0.07962]
[1728399612489,0.079613,62826.0,62825.0,0.079613]
[1728399613093,0.07961,62829.0,62828.0,0.079608]
[1728399613278,0.079613,62826.0,62825.0,0.079612]
[1728399614787,0.079614,62826.0,62825.0,0.079612]
[1728399614982,0.079614,62826.0,62825.0,0.085612]
[1728399615187,0.079614,62826.0,62825.0,0.006]
[1728399616385,0.079614,62826.0,62825.0,0.001]
[1728399616591,0.079614,62826.0,62825.0,0.007]
[1728399616888,0.080614,62826.0,62825.0,0.085614]
[1728399617286,0.001,62826.0,62825.0,0.085614]
[1728399617482,0.079612,62827.0,62826.0,0.079611]
[1728399618293,0.079609,62829.0,62828.0,0.079608]
[1728399618590,0.079612,62826.0,62825.0,0.083612]
[1728399618804,0.079612,62826.0,62825.0,0.079612]
[1728399619292,0.080612,62826.0,62825.0,0.079612]
[1728399619483,0.001,62826.0,62825.0,0.079612]
[1728399620096,0.080612,62826.0,62825.0,0.079612]
[1728399620889,0.080612,62826.0,62822.0,0.02804231]
[1728399621087,0.07962,62822.0,62821.0,0.079618]
[1728399622686,0.08062,62822.0,62821.0,0.090618]
[1728399623785,0.08062,62822.0,62821.0,0.089618]
[1728399625095,0.08062,62822.0,62821.0,0.088618]
[1728399625997,0.08062,62822.0,62821.0,0.086618]
[1728399626200,0.08062,62822.0,62821.0,0.088618]
[1728399626599,0.08062,62822.0,62821.0,0.087618]
[1728399627199,0.08062,62822.0,62821.0,0.086618]
[1728399627402,0.08062,62822.0,62821.0,0.088618]
[1728399628698,0.001,62822.0,62821.0,0.268618]
[1728399628894,0.001,62822.0,62821.0,0.266618]
[1728399629089,0.001,62822.0,62821.0,0.267618]
[1728399629297,0.079615,62825.0,62824.0,0.07961]
[1728399630705,0.081615,62825.0,62824.0,0.07961]
[1728399630906,0.081615,62825.0,62824.0,0.08261]
[1728399631097,0.002,62825.0,62824.0,0.08261]
[1728399634296,0.04098796,62825.0,62824.0,0.08261]
[1728399634503,0.002,62825.0,62824.0,0.08261]
[1728399636298,0.081614,62825.0,62824.0,0.08261]
[1728399638909,0.261614,62825.0,62824.0,0.08261]
[1728399639209,0.002,62825.0,62824.0,0.08261]
[1728399642507,0.081614,62825.0,62824.0,0.08261]
[1728399643012,0.12060226,62825.0,62824.0,0.003]
[1728399643201,0.12060331,62825.0,62824.0,0.003]
[1728399643402,0.12060331,62825.0,62824.0,0.082615]
[1728399643809,0.12060331,62825.0,62824.0,0.003]
[1728399644113,0.30060331,62825.0,62824.0,0.003]
[1728399644310,0.34947606,62825.0,62824.0,0.003]
[1728399645401,0.30060331,62825.0,62824.0,0.003]
[1728399646412,0.34947756,62825.0,62824.0,0.003]
[1728399647012,1.34738356,62825.0,62809.0,0.3608]
[1728399647217,0.259633,62810.0,62809.0,0.3608]
[1728399647413,0.07964,62804.0,62801.0,0.3608]
[1728399647615,0.25964,62804.0,62801.0,0.3608]
[1728399648312,0.65944157,62804.0,62794.0,0.440453]
[1728399648514,0.079652,62795.0,62794.0,0.440453]
[1728399648721,0.18,62804.0,62794.0,0.5408]
[1728399648908,0.18,62804.0,62800.0,0.079644]
[1728399648909,0.079645,62801.0,62800.0,0.079644]
[1728399649108,0.11864954,62801.0,62800.0,0.079644]
[1728399649513,0.079652,62795.0,62794.0,0.440453]
[1728399649715,0.18,62797.0,62786.0,0.3608]
[1728399649917,0.18,62792.0,62786.0,0.3608]
[1728399650122,0.259662,62787.0,62786.0,0.3608]
[1728399650422,0.259662,62787.0,62786.0,0.440463]
[1728399651819,0.259662,62787.0,62781.0,0.0023889]
[1728399652118,0.259668,62782.0,62781.0,0.0023889]
[1728399652317,0.001,62787.0,62781.0,0.3631889]
[1728399652512,0.079667,62785.0,62784.0,0.079664]
[1728399652708,0.18,62786.0,62781.0,0.3631889]
[1728399652912,0.079667,62784.0,62781.0,0.4428579]
[1728399653124,0.079667,62783.0,62781.0,0.4428579]
[1728399653420,0.260668,62782.0,62781.0,0.3761889]
[1728399653822,0.079674,62778.0,62774.0,0.079678]
[1728399654029,0.18,62775.0,62768.0,0.3608]
[1728399654321,0.18,62769.0,62768.0,0.3608]
[1728399654528,0.079677,62775.0,62768.0,0.18]
[1728399654915,0.18,62778.0,62774.0,0.014]
[1728399654916,0.001,62778.0,62774.0,0.014]
[1728399655226,0.18,62775.0,62774.0,0.014]
[1728399655414,0.259677,62775.0,62774.0,0.014]
[1728399655815,0.079679,62773.0,62772.0,0.079681]
[1728399656124,0.079679,62773.0,62768.0,0.013]
[1728399656125,0.079685,62769.0,62768.0,0.092686]
[1728399656316,0.259685,62769.0,62768.0,0.092686]
[1728399657225,0.259685,62769.0,62768.0,0.013]
[1728399657521,0.259685,62769.0,62768.0,0.014]
[1728399657522,0.260685,62769.0,62768.0,0.014]
[1728399657915,0.079693,62763.0,62760.0,0.079695]
[1728399658113,0.3608,62761.0,62755.0,0.079701]
[1728399658316,0.259701,62756.0,62753.0,0.38818459]
[1728399658514,0.259701,62756.0,62746.0,0.132113]
[1728399658515,0.079707,62751.0,62746.0,0.132113]
[1728399658723,0.259707,62751.0,62748.0,0.079711]
[1728399658922,0.079714,62746.0,62745.0,0.079715]
[1728399659233,0.259714,62746.0,62745.0,0.079715]
[1728399659442,0.259714,62746.0,62739.0,0.3608]
[1728399659443,0.3608,62749.0,62739.0,0.3608]
[1728399659721,0.620511,62749.0,62739.0,0.3608]
[1728399659923,0.620511,62749.0,62740.0,0.079721]
[1728399660114,0.620511,62749.0,62739.0,0.3608]
[1728399660319,0.620511,62749.0,62748.0,0.079711]
[1728399661322,0.001,62746.0,62745.0,0.013]
[1728399661521,0.260714,62746.0,62745.0,0.092715]
[1728399661926,0.001,62746.0,62745.0,0.092715]
[1728399662124,0.001,62746.0,62745.0,0.079715]
[1728399662324,0.001,62746.0,62745.0,0.440515]
[1728399662529,0.001,62749.0,62745.0,0.440515]
[1728399662530,0.001,62749.0,62748.0,0.079711]
[1728399663939,0.079706,62752.0,62751.0,0.079707]
[1728399664245,0.18,62752.0,62746.0,0.0557]
[1728399664533,0.3608,62755.0,62745.0,0.013]
[1728399664534,0.079714,62746.0,62745.0,0.013]
[1728399664736,0.079706,62753.0,62743.0,0.079717]
[1728399664737,0.079717,62744.0,62743.0,0.079717]
[1728399665527,0.259717,62744.0,62743.0,0.079717]
[1728399666125,0.259717,62744.0,62737.0,0.079724]
[1728399666126,0.079721,62740.0,62737.0,0.079724]
[1728399666328,0.079726,62736.0,62735.0,0.135427]
[1728399666522,0.259726,62736.0,62735.0,0.135427]
[1728399666725,0.259726,62736.0,62735.0,0.0557]
[1728399667035,0.18,62736.0,62735.0,0.079728]
[1728399667225,0.259726,62736.0,62735.0,0.079728]
[1728399667427,0.3608,62739.0,62738.0,0.079724]
[1728399667724,0.081717,62744.0,62743.0,0.079718]
[1728399667930,0.002,62744.0,62743.0,0.079718]
[1728399668234,0.00239126,62753.0,62752.0,0.079706]
[1728399668931,0.3608,62767.0,62761.0,0.079695]
[1728399669235,0.18,62764.0,62761.0,0.079695]
[1728399669630,0.18,62764.0,62752.0,0.3648]
[1728399669631,0.001,62753.0,62752.0,0.3648]
[1728399669947,0.001,62753.0,62752.0,0.083706]
[1728399670129,0.18,62754.0,62745.0,0.3608]
[1728399670130,0.079704,62754.0,62753.0,0.079703]
[1728399670933,0.001,62753.0,62752.0,0.012]
[1728399671126,0.001,62753.0,62752.0,0.452506]
[1728399671725,0.079701,62756.0,62755.0,0.079702]
[1728399673139,0.079701,62756.0,62755.0,0.084702]
[1728399673348,0.3608,62762.0,62755.0,0.005]
[1728399673638,0.3608,62767.0,62755.0,0.005]
[1728399673639,0.079697,62761.0,62760.0,0.079695]
[1728399674636,0.07969,62765.0,62764.0,0.07969]
[1728399676025,0.07969,62765.0,62764.0,0.08169]
[1728399676232,0.35969,62765.0,62764.0,0.08169]
[1728399676534,0.35969,62765.0,62764.0,0.002]
[1728399677730,0.35969,62765.0,62760.0,0.01]
[1728399677930,0.079695,62761.0,62756.0,0.04772666]
[1728399678237,0.079701,62756.0,62755.0,0.12742766]
[1728399678437,0.079701,62756.0,62755.0,0.079701]
[1728399679238,0.079695,62761.0,62760.0,0.079695]
[1728399679742,0.079691,62764.0,62760.0,0.007]
[1728399679939,0.001,62765.0,62764.0,0.079691]
[1728399680238,0.28239058,62774.0,62772.0,0.079681]
[1728399680239,0.3608,62773.0,62772.0,0.079681]
[1728399681542,0.3618,62773.0,62772.0,0.092681]
[1728399681736,0.001,62773.0,62772.0,0.092681]
[1728399682040,0.00239058,62774.0,62773.0,0.079679]
[1728399682442,0.44047,62781.0,62773.0,0.079679]
[1728399682743,0.079665,62785.0,62784.0,0.079666]
[1728399683845,0.079665,62785.0,62784.0,0.089666]
[1728399684049,0.079662,62787.0,62786.0,0.07966]
[1728399684443,0.079664,62785.0,62784.0,0.01]
[1728399684734,0.079673,62778.0,62777.0,0.3608]
[1728399684935,0.359673,62778.0,62777.0,0.3608]
[1728399685137,0.359673,62778.0,62776.0,0.079675]
[1728399685138,0.28,62778.0,62776.0,0.079675]
[1728399685332,0.079674,62777.0,62776.0,0.079675]
[1728399686229,0.079674,62777.0,62776.0,0.082675]
[1728399686629,0.079674,62777.0,62776.0,0.079675]
[1728399686835,0.079674,62777.0,62776.0,0.003]
[1728399687134,0.440474,62777.0,62776.0,0.003]
[1728399687644,0.440474,62777.0,62776.0,0.013]
[1728399687848,1.518354,62777.0,62776.0,0.013]
[1728399688448,1.518354,62777.0,62776.0,0.01]
[1728399688449,0.440474,62777.0,62776.0,0.01]
[1728399688738,0.3608,62777.0,62776.0,0.092676]
[1728399689350,0.3638,62777.0,62776.0,0.079676]
[1728399689841,0.3608,62777.0,62776.0,0.082676]
[1728399690234,0.720474,62777.0,62776.0,0.093676]
[1728399690439,0.721474,62777.0,62776.0,0.014]
[1728399692135,0.721474,62777.0,62776.0,0.011]
[1728399692439,0.721474,62777.0,62776.0,0.090676]
[1728399692739,0.3618,62777.0,62776.0,0.093676]
[1728399692945,0.001,62777.0,62776.0,0.086676]
[1728399693446,0.079666,62784.0,62779.0,0.079672]
[1728399693642,0.3608,62786.0,62776.0,0.005]
[1728399693643,0.3608,62786.0,62783.0,0.079665]
[1728399693842,0.3608,62786.0,62777.0,0.1041]
[1728399693843,0.440463,62786.0,62785.0,0.079664]
[1728399694449,0.3608,62786.0,62785.0,0.079664]
[1728399694743,0.6408,62792.0,62784.0,0.0528]
[1728399694744,0.36168,62792.0,62784.0,0.0528]
[1728399694944,0.079658,62790.0,62789.0,0.079657]
[1728399696448,0.079658,62790.0,62789.0,0.089657]
[1728399696744,0.079658,62790.0,62789.0,0.01]
[1728399697135,0.079658,62790.0,62789.0,0.003]
[1728399697335,0.079658,62790.0,62789.0,0.01]
[1728399697536,0.079672,62779.0,62778.0,0.3608]
[1728399697736,0.359672,62779.0,62778.0,0.3608]
[1728399698643,0.28,62779.0,62770.0,0.04979732]
[1728399698839,0.359682,62771.0,62770.0,0.08207147]
[1728399700549,0.359682,62771.0,62770.0,0.09007147]
[1728399700948,0.359682,62771.0,62770.0,0.01038947]